bitfinex-derivatives/quotes_BTCF0:USTF0_20240829
["timestamp","ask_amount","ask_price","bid_price","bid_amount"]
[1724959812992,0.01616613,59519.0,59518.0,0.598487]
[1724959813306,0.01716613,59519.0,59518.0,0.598487]
[1724959813695,0.01716613,59519.0,59518.0,0.3608]
[1724959813897,0.10115113,59519.0,59518.0,0.3608]
[1724959814202,0.08399,59516.0,59510.0,0.3608]
[1724959814506,0.08399,59516.0,59504.0,0.3608]
[1724959814507,0.237391,59515.0,59504.0,0.3608]
[1724959814805,0.374001,59508.0,59504.0,0.3608]
[1724959814995,0.084005,59505.0,59504.0,0.3608]
[1724959815399,0.084015,59498.0,59491.0,0.3608]
[1724959815605,0.3092,59497.0,59491.0,0.3608]
[1724959816105,0.3002,59497.0,59491.0,0.444824]
[1724959816492,0.29,59496.0,59491.0,0.3708]
[1724959817391,0.29,59496.0,59491.0,0.02]
[1724959817392,0.084023,59492.0,59491.0,0.02]
[1724959818194,0.084023,59492.0,59488.0,0.00025208]
[1724959818195,0.074027,59490.0,59488.0,0.00025208]
[1724959818393,0.074027,59490.0,59478.0,0.3608]
[1724959818394,0.6508,59489.0,59478.0,0.3608]
[1724959818596,0.3608,59484.0,59477.0,0.3608]
[1724959818798,0.03795685,59485.0,59483.0,0.084036]
[1724959819097,0.02895685,59496.0,59487.0,0.08403]
[1724959819301,0.02895685,59496.0,59495.0,0.3608]
[1724959820301,0.1534,59497.0,59495.0,0.3608]
[1724959821091,0.012,59496.0,59495.0,0.3608]
[1724959821298,0.012,59496.0,59490.0,0.00025208]
[1724959821299,0.084024,59492.0,59490.0,0.00025208]
[1724959821498,0.4417,59491.0,59490.0,0.00025208]
[1724959821700,0.1517,59491.0,59490.0,0.00025208]
[1724959822009,0.02,59496.0,59490.0,0.00025208]
[1724959822204,0.02,59496.0,59495.0,0.3608]
[1724959822505,0.02,59496.0,59490.0,0.00025208]
[1724959822506,0.023,59496.0,59490.0,0.00025208]
[1724959823610,0.011,59491.0,59490.0,0.00025208]
[1724959823908,0.095025,59491.0,59490.0,0.00025208]
[1724959824707,0.011,59491.0,59490.0,0.00025208]
[1724959825095,0.084019,59495.0,59490.0,0.00025208]
[1724959825405,0.014,59491.0,59490.0,0.00025208]
[1724959825799,0.028,59491.0,59490.0,0.00025208]
[1724959826223,0.028,59491.0,59490.0,0.08427808]
[1724959826403,0.014,59491.0,59490.0,1.18855808]
[1724959826600,0.014,59491.0,59490.0,0.08427808]
[1724959826807,0.014,59495.0,59491.0,0.084025]
[1724959827105,0.028,59495.0,59494.0,0.3608]
[1724959827603,0.014,59495.0,59494.0,0.3608]
[1724959828004,0.01585811,59497.0,59494.0,0.3608]
[1724959828205,0.084012,59500.0,59494.0,0.3608]
[1724959828598,0.014,59495.0,59494.0,0.3608]
[1724959828802,0.014,59495.0,59494.0,0.444821]
[1724959828803,0.028,59495.0,59494.0,0.444821]
[1724959829104,0.02749584,59495.0,59494.0,1.549061]
[1724959829307,0.01349584,59495.0,59494.0,1.633082]
[1724959829614,0.01349584,59495.0,59494.0,1.786582]
[1724959829909,0.00025208,59501.0,59499.0,0.084014]
[1724959830103,0.00025208,59501.0,59500.0,0.589312]
[1724959830306,0.00025208,59501.0,59500.0,1.777524]
[1724959831703,0.00425208,59501.0,59500.0,1.777524]
[1724959831907,0.00425208,59501.0,59500.0,1.79395486]
[1724959832104,0.00225208,59501.0,59500.0,1.79395486]
[1724959832304,0.00525208,59501.0,59500.0,1.79395486]
[1724959833011,8e-08,59501.0,59500.0,1.93215486]
[1724959833406,8e-08,59501.0,59500.0,2.01616686]
[1724959835317,8e-08,59501.0,59500.0,1.93215486]
[1724959837010,8e-08,59501.0,59500.0,1.33215486]
[1724959838614,8e-08,59501.0,59500.0,0.82795486]
[1724959839110,8e-08,59501.0,59500.0,0.68345486]
[1724959839310,8e-08,59501.0,59500.0,1.18765486]
[1724959840610,8e-08,59501.0,59500.0,0.68345486]
[1724959840820,8e-08,59501.0,59500.0,1.18765486]
[1724959841810,8e-08,59501.0,59500.0,0.46124286]
[1724959842317,0.08401108,59501.0,59500.0,0.3608]
[1724959844013,8e-08,59501.0,59500.0,0.3608]
[1724959844209,8e-08,59501.0,59500.0,0.734812]
[1724959846222,0.00100008,59501.0,59500.0,0.456812]
[1724959846412,0.00100008,59501.0,59500.0,0.61958944]
[1724959847412,0.001,59501.0,59500.0,1.72478944]
[1724959847613,0.00025208,59506.0,59505.0,0.084005]
[1724959847815,0.00025208,59506.0,59505.0,0.444805]
[1724959849526,0.00525208,59506.0,59505.0,0.444805]
[1724959851125,0.01125208,59506.0,59505.0,0.444805]
[1724959851815,1.19941608,59506.0,59505.0,0.3608]
[1724959852013,1.19941608,59506.0,59504.0,0.084006]
[1724959852014,0.01125208,59506.0,59504.0,0.084006]
[1724959852214,0.084005,59505.0,59504.0,0.084006]
[1724959852614,0.084005,59505.0,59491.0,0.3608]
[1724959852615,0.96,59505.0,59458.0,0.06639634]
[1724959852924,0.3608,59471.0,59461.0,0.084067]
[1724959853124,0.36,59466.0,59460.0,0.3608]
[1724959853317,0.3608,59464.0,59455.0,0.3608]
[1724959853519,0.36,59460.0,59455.0,0.3608]
[1724959853824,0.00025208,59463.0,59455.0,0.3608]
[1724959855024,0.00125208,59463.0,59455.0,0.3608]
[1724959855217,0.00225208,59463.0,59455.0,0.012]
[1724959855928,0.00225208,59463.0,59455.0,0.3728]
[1724959859019,0.00225208,59463.0,59460.0,0.3608]
[1724959859430,0.00225208,59463.0,59461.0,0.084066]
[1724959860926,0.00125208,59463.0,59461.0,0.084066]
[1724959861134,0.00225208,59463.0,59461.0,0.084066]
[1724959861429,0.084067,59461.0,59460.0,0.008]
[1724959861624,0.084079,59453.0,59452.0,0.00025208]
[1724959861827,0.797879,59453.0,59452.0,0.00025208]
[1724959862223,0.36,59460.0,59452.0,0.00025208]
[1724959862429,0.3608,59461.0,59452.0,0.00025208]
[1724959862939,0.3618,59461.0,59460.0,0.008]
[1724959863234,0.3618,59461.0,59452.0,0.00025208]
[1724959863529,0.084079,59453.0,59452.0,0.00025208]
[1724959864838,0.085079,59453.0,59452.0,0.00025208]
[1724959865132,0.001,59453.0,59452.0,0.08433208]
[1724959865922,0.002,59453.0,59452.0,0.08433208]
[1724959866334,0.01841846,59453.0,59452.0,0.08433208]
[1724959866631,0.002,59453.0,59452.0,0.08433208]
[1724959869642,0.002,59453.0,59452.0,1.18893208]
[1724959870029,0.002,59453.0,59452.0,1.54973208]
[1724959871639,0.01646517,59459.0,59458.0,0.084071]
[1724959871940,0.00025208,59463.0,59458.0,0.3608]
[1724959872441,0.00025208,59463.0,59462.0,0.084066]
[1724959874530,0.00025208,59463.0,59458.0,0.806991]
[1724959874727,0.08407,59459.0,59458.0,0.3608]
[1724959875340,0.08207,59459.0,59458.0,0.3608]
[1724959877340,0.084074,59457.0,59452.0,0.00025208]
[1724959877531,0.084074,59457.0,59452.0,0.08433208]
[1724959878335,0.084075,59456.0,59452.0,0.08433208]
[1724959878529,0.3608,59454.0,59452.0,0.08433208]
[1724959878738,0.084079,59453.0,59452.0,0.00025208]
[1724959881042,0.085079,59453.0,59440.0,0.444897]
[1724959881344,0.3608,59443.0,59438.0,0.04979726]
[1724959881541,0.3608,59443.0,59437.0,0.04979726]
[1724959881734,0.3608,59443.0,59434.0,0.04979726]
[1724959882036,0.3608,59443.0,59436.0,0.084102]
[1724959882037,0.084097,59441.0,59436.0,0.084102]
[1724959882439,0.084097,59441.0,59438.0,0.04979726]
[1724959882640,0.084098,59439.0,59438.0,0.04979726]
[1724959882939,0.0841,59438.0,59437.0,0.04979726]
[1724959883132,0.3608,59438.0,59437.0,0.04999304]
[1724959883337,0.084101,59437.0,59436.0,0.04999304]
[1724959883645,0.084104,59435.0,59434.0,0.04999304]
[1724959884141,0.084105,59434.0,59433.0,0.05016182]
[1724959884833,0.3608,59438.0,59433.0,0.00016878]
[1724959884834,0.001,59435.0,59433.0,0.00016878]
[1724959885247,0.084105,59434.0,59433.0,0.00016878]
[1724959885437,0.085105,59434.0,59433.0,0.00016878]
[1724959885636,0.085105,59434.0,59433.0,0.0501678]
[1724959885837,0.085105,59434.0,59433.0,0.00016878]
[1724959886952,0.086105,59434.0,59433.0,0.00016878]
[1724959887140,0.001,59434.0,59433.0,0.00016878]
[1724959887941,0.086105,59434.0,59433.0,0.00016878]
[1724959888145,0.17021,59434.0,59433.0,0.05013651]
[1724959888445,0.086105,59434.0,59433.0,0.00016878]
[1724959888640,0.086105,59434.0,59433.0,0.05013651]
[1724959888838,0.086105,59434.0,59433.0,0.00016878]
[1724959889035,0.086105,59434.0,59433.0,0.05013651]
[1724959889241,0.086105,59434.0,59433.0,0.00016878]
[1724959889438,0.168222,59430.0,59429.0,0.04996773]
[1724959889653,0.002,59434.0,59429.0,0.198]
[1724959889841,0.084072,59458.0,59437.0,0.36]
[1724959890152,0.1445,59472.0,59457.0,0.3608]
[1724959890342,0.1325,59471.0,59466.0,0.3608]
[1724959891752,0.084056,59469.0,59466.0,0.3608]
[1724959892139,0.084059,59467.0,59457.0,0.3608]
[1724959892345,0.084059,59467.0,59464.0,0.3608]
[1724959892552,0.00139183,59472.0,59464.0,0.3608]
[1724959892742,0.4443013,59474.0,59464.0,0.3608]
[1724959893152,0.007,59471.0,59464.0,0.3608]
[1724959893761,0.084057,59468.0,59464.0,0.3608]
[1724959893942,0.46026572,59474.0,59464.0,0.3608]
[1724959894143,0.007,59469.0,59466.0,0.001]
[1724959894654,0.008,59471.0,59464.0,0.3618]
[1724959894952,0.005,59468.0,59464.0,0.3618]
[1724959895750,0.1338,59467.0,59464.0,0.3618]
[1724959896347,0.1338,59467.0,59466.0,0.001]
[1724959896851,0.1388,59467.0,59464.0,0.3608]
[1724959897045,0.1388,59467.0,59464.0,0.3618]
[1724959897543,0.1438,59467.0,59466.0,0.001]
[1724959898348,0.1438,59467.0,59464.0,0.3628]
[1724959898349,0.1398,59467.0,59464.0,0.3628]
[1724959898544,0.1398,59467.0,59466.0,0.08406]
[1724959898746,0.006,59467.0,59466.0,0.08406]
[1724959899345,0.0002523,59474.0,59465.0,0.72208]
[1724959899650,0.0002523,59474.0,59473.0,0.7208]
[1724959900049,0.0002523,59474.0,59473.0,0.80485]
[1724959901052,0.0022523,59474.0,59473.0,0.80585]
[1724959901356,0.0162523,59474.0,59473.0,0.80585]
[1724959902559,0.0002523,59474.0,59473.0,0.80485]
[1724959902756,0.0152523,59474.0,59473.0,0.80685]
[1724959904061,0.6037413,59474.0,59473.0,0.3628]
[1724959904750,0.5196923,59474.0,59473.0,0.3628]
[1724959905152,0.0152523,59474.0,59473.0,0.3628]
[1724959906057,0.0993013,59474.0,59473.0,0.3628]
[1724959906760,0.0152523,59474.0,59473.0,0.3628]
[1724959906948,0.0152523,59474.0,59473.0,0.5309]
[1724959907260,0.0152523,59474.0,59473.0,0.44685]
[1724959908254,0.0152523,59474.0,59473.0,0.5309]
[1724959908460,0.0152523,59474.0,59473.0,0.44685]
[1724959914960,0.0152523,59474.0,59473.0,0.3628]
[1724959919568,0.6037413,59474.0,59473.0,0.3628]
[1724959920262,0.0993013,59474.0,59473.0,0.3628]
[1724959920476,0.6037413,59474.0,59473.0,0.002]
[1724959920770,0.0993013,59474.0,59473.0,0.002]
[1724959921166,0.0993013,59474.0,59452.0,0.3608]
[1724959921167,1.5015923,59474.0,59452.0,0.3608]
[1724959921471,0.444874,59457.0,59446.0,0.3608]
[1724959921669,0.2695071,59457.0,59446.0,0.3608]
[1724959921871,0.2695071,59457.0,59451.0,0.3608]
[1724959922066,0.1854331,59457.0,59453.0,0.084078]
[1724959922268,0.1854331,59457.0,59451.0,0.3608]
[1724959922269,0.0002523,59457.0,59456.0,0.444874]
[1724959922669,0.4975,59473.0,59470.0,0.084054]
[1724959923077,0.4975,59473.0,59466.0,0.3608]
[1724959923273,0.51589655,59473.0,59466.0,0.3608]
[1724959923575,0.3608,59467.0,59461.0,0.3608]
[1724959923796,0.3608,59467.0,59461.0,0.444867]
[1724959924071,0.084063,59465.0,59461.0,0.3608]
[1724959924271,0.083063,59465.0,59461.0,0.3608]
[1724959924862,0.084066,59462.0,59461.0,0.3608]
[1724959925071,0.084066,59462.0,59458.0,0.0002523]
[1724959925282,0.08407,59459.0,59458.0,0.0002523]
[1724959926475,0.08407,59459.0,59448.0,0.3608]
[1724959926476,0.084076,59455.0,59448.0,0.3608]
[1724959926677,0.36,59454.0,59448.0,0.3608]
[1724959926873,0.084081,59452.0,59448.0,0.3608]
[1724959927069,0.083081,59452.0,59448.0,0.3608]
[1724959927272,0.36,59454.0,59448.0,0.3608]
[1724959927878,0.3608,59451.0,59442.0,0.3608]
[1724959928185,0.084093,59443.0,59442.0,0.3608]
[1724959929276,0.221392,59444.0,59436.0,0.3608]
[1724959929277,0.084101,59437.0,59436.0,0.3608]
[1724959930168,0.084106,59434.0,59430.0,0.3608]
[1724959930374,0.001,59437.0,59430.0,0.7216]
[1724959930569,0.001,59437.0,59436.0,0.444903]
[1724959930774,0.01895845,59442.0,59441.0,0.084095]
[1724959930974,0.01895845,59442.0,59441.0,0.444895]
[1724959930975,0.0002523,59442.0,59441.0,0.444895]
[1724959931387,0.0002523,59442.0,59441.0,0.949575]
[1724959931575,0.01853181,59452.0,59447.0,0.084087]
[1724959931880,0.3242,59460.0,59451.0,0.3608]
[1724959932177,0.3242,59460.0,59454.0,0.084077]
[1724959932481,0.3242,59460.0,59458.0,0.3608]
[1724959932675,0.34257161,59460.0,59458.0,0.3608]
[1724959933080,0.01837161,59460.0,59459.0,0.08407]
[1724959933285,0.0002523,59463.0,59459.0,0.08407]
[1724959933783,0.0843173,59463.0,59458.0,0.36204]
[1724959933982,0.0002523,59463.0,59458.0,0.3608]
[1724959934173,0.013,59460.0,59458.0,0.444871]
[1724959934375,0.013,59460.0,59459.0,0.001]
[1724959935278,0.50456,59460.0,59459.0,0.001]
[1724959936082,0.50456,59460.0,59458.0,0.3608]
[1724959936083,0.36,59462.0,59458.0,0.3618]
[1724959936388,0.04663134,59463.0,59458.0,0.3618]
[1724959936587,0.03263134,59463.0,59458.0,0.3608]
[1724959936778,0.014,59460.0,59459.0,0.08507]
[1724959937082,0.014,59460.0,59459.0,0.44587]
[1724959937387,0.01863134,59463.0,59462.0,0.084066]
[1724959937879,0.0002523,59463.0,59462.0,0.084066]
[1724959938071,0.08404,59481.0,59465.0,0.084061]
[1724959938277,0.10244746,59481.0,59479.0,0.3608]
[1724959938473,0.08404,59480.0,59479.0,0.3608]
[1724959938680,0.36,59484.0,59477.0,0.3608]
[1724959938878,0.1405,59486.0,59464.0,0.444862]
[1724959938879,0.36,59478.0,59464.0,0.444862]
[1724959939088,0.36,59478.0,59465.0,0.0002523]
[1724959939093,0.08405,59473.0,59465.0,0.0002523]
[1724959939386,0.36,59471.0,59465.0,0.0002523]
[1724959939586,0.1353,59470.0,59465.0,0.0002523]
[1724959939888,0.08406,59466.0,59465.0,0.0002523]
[1724959940888,0.1353,59470.0,59465.0,0.0002523]
[1724959941083,0.084056,59469.0,59465.0,0.0002523]
[1724959941586,0.014,59466.0,59465.0,0.0012523]
[1724959942083,0.01863742,59471.0,59465.0,0.0002523]
[1724959942284,0.29,59471.0,59470.0,0.3608]
[1724959943283,0.294,59471.0,59470.0,0.3608]
[1724959943480,0.378053,59471.0,59465.0,0.4461143]
[1724959943683,0.29,59466.0,59465.0,0.3610523]
[1724959943983,0.38206,59466.0,59465.0,0.0012523]
[1724959944284,0.38206,59466.0,59458.0,0.3608]
[1724959944285,1.84734,59466.0,59458.0,0.3608]
[1724959944584,1.84734,59466.0,59453.0,0.084077]
[1724959944585,0.084083,59450.0,59449.0,0.3608]
[1724959944776,0.29,59450.0,59445.0,0.3608]
[1724959944981,0.084088,59446.0,59445.0,0.3608]
[1724959945183,0.084095,59442.0,59439.0,0.36204]
[1724959945377,0.29,59441.0,59439.0,0.3608]
[1724959946078,0.0002523,59446.0,59439.0,0.3608]
[1724959946482,0.0002523,59446.0,59445.0,0.3608]
[1724959946878,0.0843403,59446.0,59445.0,0.3608]
[1724959947079,0.0002523,59446.0,59445.0,0.3608]
[1724959947678,0.02041403,59446.0,59445.0,0.3608]
[1724959947885,0.0903403,59446.0,59445.0,0.3608]
[1724959948080,0.084093,59443.0,59439.0,0.3608]
[1724959948288,0.36,59443.0,59439.0,0.3608]
[1724959948585,0.084097,59440.0,59439.0,0.3608]
[1724959949281,0.084097,59440.0,59439.0,0.3658]
[1724959950182,0.084097,59440.0,59439.0,0.3688]
[1724959950384,0.085097,59440.0,59439.0,0.3688]
[1724959951487,0.589817,59440.0,59439.0,0.3688]
[1724959951690,0.589817,59440.0,59439.0,0.008]
[1724959952982,0.60842298,59440.0,59439.0,0.008]
[1724959953184,0.10370298,59440.0,59439.0,0.008]
[1724959954287,1.20842298,59440.0,59439.0,0.008]
[1724959954591,0.52432598,59440.0,59432.0,0.3608]
[1724959954799,0.36,59433.0,59432.0,0.3608]
[1724959955090,0.444107,59433.0,59432.0,0.3608]
[1724959956090,0.444107,59433.0,59432.0,0.3638]
[1724959956792,0.444107,59433.0,59432.0,0.3648]
[1724959957284,0.01960598,59440.0,59437.0,0.0841]
[1724959957485,0.01960598,59440.0,59437.0,0.3608]
[1724959957683,0.01860598,59440.0,59437.0,0.3608]
[1724959957985,0.36,59445.0,59437.0,0.3608]
[1724959958190,0.084087,59448.0,59443.0,0.084092]
[1724959958395,0.084087,59448.0,59444.0,0.3608]
[1724959958396,0.0002523,59446.0,59444.0,0.3608]
[1724959958582,0.01847699,59446.0,59444.0,0.3608]
[1724959958780,0.0002523,59446.0,59444.0,0.3608]
[1724959959279,0.0102523,59446.0,59444.0,0.3608]
[1724959959886,0.0122523,59446.0,59444.0,0.3608]
[1724959960086,0.0252523,59446.0,59444.0,0.3608]
[1724959960288,0.12796492,59446.0,59444.0,0.3608]
[1724959960692,0.084093,59443.0,59438.0,0.0841]
[1724959960900,0.084101,59437.0,59433.0,0.084107]
[1724959961386,0.084101,59437.0,59432.0,0.3608]
[1724959961585,0.084101,59437.0,59432.0,0.444908]
[1724959961982,0.084103,59436.0,59433.0,0.001]
[1724959962487,0.36,59439.0,59432.0,0.3618]
[1724959962687,0.006,59443.0,59442.0,0.084094]
[1724959962893,0.006,59443.0,59442.0,0.444894]
[1724959963087,0.0002523,59446.0,59445.0,0.08409]
[1724959964989,0.0002523,59446.0,59444.0,0.3608]
[1724959965193,0.0002523,59446.0,59444.0,0.44489]
[1724959965390,0.0072523,59446.0,59445.0,0.08409]
[1724959965588,0.0152523,59446.0,59445.0,0.08409]
[1724959965788,0.0152523,59446.0,59445.0,0.21279]
[1724959966103,0.0142523,59446.0,59445.0,0.21279]
[1724959966591,0.0072523,59446.0,59445.0,0.21279]
[1724959966799,0.0182523,59446.0,59445.0,0.21279]
[1724959968203,0.0202523,59446.0,59445.0,0.21279]
[1724959968396,0.0092523,59446.0,59445.0,0.21279]
[1724959968696,0.0202523,59446.0,59445.0,0.21279]
[1724959968993,0.0202523,59446.0,59445.0,1.31747]
[1724959968994,0.0212523,59446.0,59445.0,1.31747]
[1724959969199,0.0212523,59446.0,59445.0,1.40156]
[1724959969504,0.0202523,59446.0,59445.0,1.40156]
[1724959970902,0.3242,59476.0,59455.0,0.084075]
[1724959971086,0.3242,59476.0,59449.0,0.3608]
[1724959971087,0.03293288,59482.0,59477.0,0.084044]
[1724959971284,0.084038,59482.0,59481.0,0.3608]
[1724959971488,0.08403,59488.0,59481.0,0.3608]
[1724959971693,0.08403,59488.0,59487.0,0.3608]
[1724959972496,0.10216378,59488.0,59487.0,0.3608]
[1724959972999,0.11516378,59488.0,59487.0,0.3618]
[1724959974405,0.12016378,59488.0,59487.0,0.3628]
[1724959975695,1.22448378,59488.0,59487.0,0.3628]
[1724959976388,0.12016378,59488.0,59487.0,0.3628]
[1724959976787,0.54045378,59488.0,59487.0,0.3628]
[1724959976989,0.03613378,59488.0,59487.0,0.3628]
[1724959977391,0.03613378,59488.0,59487.0,0.44683]
[1724959977796,0.0002523,59493.0,59492.0,0.084023]
[1724959977992,0.0002523,59493.0,59492.0,0.444823]
[1724959979097,0.0132523,59493.0,59492.0,0.445823]
[1724959979401,0.7208,59509.0,59493.0,0.084022]
[1724959979605,0.7208,59509.0,59492.0,0.3618]
[1724959979606,0.72168,59509.0,59498.0,0.3608]
[1724959979798,0.72168,59509.0,59500.0,0.084012]
[1724959979996,0.34240477,59508.0,59500.0,0.084012]
[1724959980403,0.084004,59506.0,59500.0,0.084012]
[1724959981406,0.34240477,59508.0,59501.0,0.084011]
[1724959982205,0.006,59506.0,59501.0,0.084011]
[1724959982407,0.006,59506.0,59504.0,0.3608]
[1724959982802,0.34640477,59508.0,59504.0,0.3608]
[1724959983613,0.02220477,59508.0,59506.0,0.084003]
[1724959983832,0.02220477,59508.0,59504.0,0.3608]
[1724959984710,0.02220477,59508.0,59505.0,0.084005]
[1724959984711,0.008,59506.0,59505.0,0.084005]
[1724959985101,0.008,59506.0,59504.0,0.3618]
[1724959985102,0.00025209,59510.0,59509.0,0.083999]
[1724959985304,0.1283,59522.0,59514.0,0.083991]
[1724959985305,0.34235881,59517.0,59514.0,0.083991]
[1724959985511,0.34235881,59517.0,59516.0,0.3608]
[1724959987414,0.083991,59515.0,59514.0,0.001]
[1724959988008,0.444791,59515.0,59514.0,0.001]
[1724959988201,0.16799,59512.0,59511.0,0.00025209]
[1724959988402,0.084002,59508.0,59502.0,0.3608]
[1724959988615,0.7208,59515.0,59507.0,0.3608]
[1724959988816,0.083998,59510.0,59507.0,0.3608]
[1724959990311,0.08424509,59514.0,59507.0,0.3618]
[1724959990618,0.083994,59513.0,59508.0,0.084]
[1724959990913,0.003,59510.0,59508.0,0.084]
[1724959991504,0.003,59510.0,59507.0,0.3628]
[1724959991700,0.003,59513.0,59508.0,0.001]
[1724959991906,0.083997,59511.0,59508.0,0.002]
[1724959992512,0.003,59510.0,59508.0,0.002]
[1724959994615,0.086997,59511.0,59508.0,0.002]
[1724959995117,0.086997,59511.0,59508.0,0.001]
[1724959995324,0.01918687,59514.0,59508.0,0.084]
[1724959995515,0.003,59510.0,59508.0,0.085]
[1724959995712,0.003,59510.0,59509.0,0.083999]
[1724959996813,0.003,59510.0,59509.0,0.225099]
[1724959997415,0.003,59510.0,59509.0,0.083999]
[1724959997616,0.086998,59511.0,59508.0,0.085001]
[1724959998317,0.083998,59511.0,59508.0,0.084001]
[1724959998512,0.003,59510.0,59509.0,0.001]
[1724959998718,0.003,59510.0,59509.0,0.002]
[1724959999014,0.003,59510.0,59509.0,0.085999]
[1724959999208,0.01918687,59514.0,59513.0,0.083994]
[1724959999407,0.01918687,59514.0,59513.0,0.444794]
[1724960000315,0.01918687,59514.0,59513.0,0.3608]
[1724960000517,0.30918687,59514.0,59508.0,0.001]
[1724960000708,0.083999,59509.0,59507.0,0.444801]
[1724960000914,0.30918687,59514.0,59507.0,0.444801]
[1724960000915,0.084001,59508.0,59507.0,0.444801]
[1724960001113,0.084999,59510.0,59507.0,0.444801]
[1724960001320,0.084,59509.0,59507.0,0.3608]
[1724960001709,0.084001,59508.0,59507.0,0.3608]
[1724960002423,0.084018,59496.0,59491.0,0.3608]
[1724960002618,0.084021,59494.0,59491.0,0.3608]
[1724960003319,0.082021,59494.0,59491.0,0.3608]
[1724960003520,0.29,59496.0,59491.0,0.3608]
[1724960003821,0.29,59496.0,59491.0,0.3618]
[1724960004019,0.00025209,59498.0,59491.0,0.3618]
[1724960004221,0.00025209,59498.0,59497.0,0.444816]
[1724960004419,0.01893844,59498.0,59497.0,0.444816]
[1724960004716,0.00025209,59498.0,59497.0,0.444816]
[1724960004919,0.00025209,59498.0,59497.0,1.549056]
[1724960005117,0.00025209,59498.0,59497.0,0.949056]
[1724960006116,0.00025209,59498.0,59497.0,0.955056]
[1724960006524,0.00025209,59498.0,59497.0,0.949056]
[1724960006819,0.00025209,59498.0,59497.0,0.958056]
[1724960007621,0.04196697,59505.0,59500.0,0.084011]
[1724960007829,0.06011441,59505.0,59504.0,0.0830448]
[1724960008021,0.06011441,59505.0,59504.0,0.21109555]
[1724960008220,0.06011441,59505.0,59504.0,0.0830448]
[1724960008423,0.06011441,59505.0,59504.0,0.21109556]
[1724960008730,0.06011441,59505.0,59503.0,0.3608]
[1724960008918,0.084006,59504.0,59501.0,0.1670558]
[1724960009723,0.083006,59504.0,59501.0,0.1670558]
[1724960009932,0.083006,59504.0,59503.0,0.001]
[1724960010433,0.168016,59503.0,59502.0,0.04989433]
[1724960010622,0.084009,59502.0,59501.0,0.04989433]
[1724960011017,0.588209,59502.0,59501.0,0.04989433]
[1724960011223,0.588209,59502.0,59500.0,0.04989433]
[1724960011224,0.084011,59501.0,59500.0,0.04989433]
[1724960011436,0.1291,59503.0,59500.0,0.06652887]
[1724960011728,0.1291,59503.0,59501.0,0.06752887]
[1724960011917,0.02255327,59504.0,59502.0,0.06652887]
[1724960012123,0.02255327,59504.0,59503.0,0.06652887]
[1724960012526,0.02255327,59504.0,59501.0,0.06752887]
[1724960012826,0.29,59502.0,59499.0,0.06652887]
[1724960013033,0.088011,59501.0,59500.0,0.06652887]
[1724960013534,0.084015,59498.0,59497.0,0.06652887]
[1724960013846,0.084019,59495.0,59494.0,0.06652887]
[1724960014022,0.004,59501.0,59500.0,0.084012]
[1724960014227,0.084014,59499.0,59497.0,0.06643338]
[1724960014624,0.083014,59499.0,59496.0,0.06643338]
[1724960014927,0.3608,59501.0,59496.0,0.06643338]
[1724960015126,0.3608,59501.0,59500.0,0.04986272]
[1724960015522,0.3608,59501.0,59499.0,0.04986272]
[1724960015523,0.4631151,59501.0,59499.0,0.04986272]
[1724960015729,0.4631151,59501.0,59495.0,0.084019]
[1724960016026,0.4631151,59501.0,59496.0,0.084017]
[1724960016222,0.4681151,59501.0,59497.0,0.084016]
[1724960016421,0.4681151,59501.0,59496.0,0.001]
[1724960016830,0.4681151,59501.0,59500.0,0.3608]
[1724960016831,0.0233031,59501.0,59500.0,0.3608]
[1724960017034,0.0233031,59501.0,59500.0,0.444812]
[1724960017430,0.0233031,59501.0,59500.0,0.577312]
[1724960017625,0.00025209,59510.0,59509.0,0.083999]
[1724960017823,0.00025209,59510.0,59509.0,0.444799]
[1724960018041,0.01863051,59510.0,59509.0,0.444799]
[1724960018233,0.00025209,59510.0,59509.0,0.444799]
[1724960019328,0.018586,59516.0,59515.0,0.083991]
[1724960019530,0.1292,59520.0,59515.0,0.444791]
[1724960020241,0.213185,59520.0,59515.0,0.444791]
[1724960020435,0.22963081,59520.0,59515.0,0.445791]
[1724960021142,0.14564581,59520.0,59515.0,0.3618]
[1724960021329,0.08399,59516.0,59515.0,0.3618]
[1724960022039,0.08399,59516.0,59515.0,0.3608]
[1724960022231,0.08399,59516.0,59515.0,0.3628]
[1724960022641,0.08399,59516.0,59515.0,0.3618]
[1724960022934,0.08399,59516.0,59515.0,0.002]
[1724960022935,1.03286,59516.0,59515.0,0.002]
[1724960023125,1.06515391,59516.0,59515.0,0.002]
[1724960023932,1.66515391,59516.0,59515.0,0.002]
[1724960024139,0.082998,59510.0,59509.0,0.3608]
[1724960025434,0.001,59510.0,59509.0,0.3608]
[1724960026439,0.001,59510.0,59509.0,0.3618]
[1724960027334,0.002,59510.0,59509.0,0.3628]
[1724960027934,0.01847161,59510.0,59509.0,0.3628]
[1724960028142,0.01947161,59510.0,59509.0,0.3628]
[1724960028527,0.01947161,59510.0,59509.0,0.3618]
[1724960028736,0.01947161,59510.0,59509.0,0.3628]
[1724960029041,0.01947161,59510.0,59509.0,0.445799]
[1724960029539,0.083979,59524.0,59519.0,0.083984]
[1724960029738,0.083975,59526.0,59519.0,0.083984]
[1724960030132,0.01653709,59523.0,59519.0,0.083984]
[1724960030334,0.00025209,59523.0,59519.0,0.083984]
[1724960031640,0.00025209,59523.0,59519.0,0.084984]
[1724960031941,0.00025209,59523.0,59519.0,0.085984]
[1724960034441,0.083984,59520.0,59519.0,0.002]
[1724960034637,0.444784,59520.0,59519.0,0.002]
[1724960035040,0.03229391,59521.0,59519.0,0.002]
[1724960035237,0.29,59522.0,59519.0,0.002]
[1724960035435,0.167968,59520.0,59519.0,0.002]